bitfinex-derivatives/quotes_SOLF0:USTF0_20251209
["timestamp","ask_amount","ask_price","bid_price","bid_amount"]
[1765291314170,0.05213173,132.09,132.07,0.05669248]
[1765291314670,0.05213173,132.09,132.07,64.37669248]
[1765291315066,0.05213173,132.09,132.07,71.19089248]
[1765291315490,0.00363244,132.09,132.07,71.19089248]
[1765291316071,0.00363244,132.09,132.07,72.71089248]
[1765291316769,0.00363244,132.09,132.07,6.87089248]
[1765291316974,0.00363244,132.09,132.08,64.32]
[1765291319276,0.00363244,132.09,132.08,64.3]
[1765291319972,0.00363244,132.09,132.07,6.87089248]
[1765291320173,0.00363244,132.09,132.08,64.3]
[1765291320373,0.00363244,132.09,132.07,6.87089248]
[1765291320374,0.00363244,132.09,132.07,0.05669248]
[1765291321973,0.00363244,132.09,132.08,64.3]
[1765291323076,0.00363244,132.09,132.08,1.52]
[1765291323274,0.00363244,132.09,132.08,64.3]
[1765291325188,0.00363244,132.09,132.07,0.05669248]
[1765291326782,6.81733244,132.09,132.07,0.05669248]
[1765291326981,0.00363244,132.09,132.07,0.05669248]
[1765291327181,1.52363244,132.09,131.98,120.15270044]
[1765291327483,6.813,132.11,132.02,64.3]
[1765291327683,11.13279924,132.1,132.02,64.3]
[1765291327884,6.813,132.11,132.02,64.3]
[1765291328084,11.13275497,132.1,132.02,64.3]
[1765291328282,0.04962093,132.07,132.05,0.05197068]
[1765291328789,0.04962093,132.07,132.05,6.86757068]
[1765291330693,0.04962093,132.07,132.05,0.05197068]
[1765291332293,0.04962093,132.07,132.05,6.86757068]
[1765291333484,0.04962093,132.07,132.05,8.38757068]
[1765291333686,0.04962093,132.07,132.06,64.3]
[1765291334892,0.04962093,132.07,132.05,6.86757068]
[1765291335195,0.04962093,132.07,132.06,64.3]
[1765291336299,0.04962093,132.07,132.05,6.86757068]
[1765291336497,0.04962093,132.07,132.06,64.3]
[1765291338389,0.04962093,132.07,132.05,0.05197068]
[1765291341298,0.04962093,132.07,132.05,6.86727068]
[1765291344095,0.04962093,132.07,132.06,6.8152]
[1765291345302,6.99729839,132.16,132.08,6.8137]
[1765291345499,11.36096395,132.15,132.09,64.3]
[1765291345696,6.8099,132.17,132.07,106.0001]
[1765291345697,6.8099,132.17,132.1,64.3]
[1765291345994,11.36143934,132.16,132.1,64.3]
[1765291346196,0.05660629,132.14,132.12,0.05052144]
[1765291352096,8.38770629,132.14,132.12,0.05052144]
[1765291352293,5.76988802,132.13,132.06,64.3]
[1765291352611,6.811,132.15,132.06,64.3]
[1765291352900,5.76988661,132.14,132.06,64.3]
[1765291353101,6.24564906,132.17,132.06,170.3105]
[1765291353404,0.05567782,132.13,132.1,0.04780733]
[1765291356706,6.86767782,132.13,132.1,0.04780733]
[1765291357911,0.05567782,132.13,132.1,0.04780733]
[1765291368115,6.86747782,132.13,132.1,0.04780733]
[1765291368923,0.05567782,132.13,132.1,0.04780733]
[1765291369425,6.86747782,132.13,132.1,0.04780733]
[1765291369729,5.75762784,132.12,132.1,0.04780733]
[1765291370022,6.86727782,132.13,132.1,0.04780733]
[1765291370208,0.05567782,132.13,132.1,0.04780733]
[1765291370621,5.75779453,132.12,132.1,0.04780733]
[1765291370811,0.05567782,132.13,132.1,0.04780733]
[1765291371016,5.75779724,132.12,132.1,0.04780733]
[1765291371323,6.8126,132.12,132.1,0.04780733]
[1765291372022,6.8126,132.11,132.1,0.04780733]
[1765291372329,5.75998509,132.11,132.1,0.04780733]
[1765291373634,0.05567782,132.13,132.1,0.04780733]
[1765291375434,0.05567782,132.13,132.1,6.86080733]
[1765291375940,0.05567782,132.13,132.1,0.04780733]
[1765291376138,0.05567782,132.13,132.11,6.8125]
[1765291378642,0.05567782,132.13,132.1,9.19234445]
[1765291379043,0.05567782,132.13,132.1,2.37934445]
[1765291380245,0.05567782,132.13,132.12,6.8121]
[1765291380839,0.05567782,132.13,132.1,2.37934445]
[1765291381045,0.05567782,132.13,132.1,9.19234445]
[1765291381540,0.05567782,132.13,132.1,0.04780733]
[1765291381744,2.38721494,132.13,132.1,0.04780733]
[1765291381937,5.76354519,132.12,132.1,0.04780733]
[1765291382250,2.38721494,132.13,132.1,0.04780733]
[1765291382447,5.76434274,132.12,132.1,0.04780733]
[1765291382744,0.05567782,132.13,132.1,0.04780733]
[1765291382948,2.38721494,132.13,132.1,0.04780733]
[1765291383331,0.05567782,132.13,132.1,0.04780733]
[1765291384749,2.33153712,132.11,132.1,0.04780733]
[1765291385049,8.03560429,132.11,132.04,2.33153712]
[1765291385250,2.33153712,132.09,132.04,6.8162]
[1765291385448,2.33153712,132.09,132.03,64.3]
[1765291385749,2.33153712,132.07,132.03,64.3]
[1765291385934,0.05216465,132.06,132.04,0.04918778]
[1765291388941,0.05216465,132.06,132.04,6.86528778]
[1765291390047,9.14423712,132.11,132.04,6.86528778]
[1765291390048,2.33153712,132.11,132.05,6.8156]
[1765291390251,2.33153712,132.13,132.04,2.33153712]
[1765291390547,2.33153712,132.13,132.06,2.33153712]
[1765291391259,0.0562372,132.11,132.08,0.05490093]
[1765291394851,6.8689372,132.11,132.08,0.05490093]
[1765291395047,7.05144933,132.16,132.08,2.38643805]
[1765291395245,5.69159235,132.15,132.1,2.33153712]
[1765291395446,2.33153712,132.18,132.1,66.63153712]
[1765291395754,5.6927816,132.17,132.12,2.33153712]
[1765291396054,0.05071721,132.16,132.13,6.86654127]
[1765291396851,0.05071721,132.16,132.13,0.05504127]
[1765291399560,0.05071721,132.16,132.13,6.86654127]
[1765291399762,0.05071721,132.16,132.13,107.53064127]
[1765291399950,5.68987332,132.22,132.15,105.9397]
[1765291400155,7.05144933,132.27,132.16,64.3]
[1765291400460,11.18955318,132.26,132.16,64.3]
[1765291400659,11.18955318,132.25,132.16,64.3]
[1765291400858,119.13600678,132.28,132.16,64.3]
[1765291401061,119.13600678,132.28,132.19,0.05056068]
[1765291401062,0.05748126,132.22,132.19,0.05056068]
[1765291401352,0.05051743,132.22,132.19,0.05152346]
[1765291401558,0.05051743,132.22,132.19,6.85982346]
[1765291402161,0.05051743,132.22,132.2,6.8076]
[1765291402463,64.32,132.31,132.21,64.3]
[1765291402657,12.47972287,132.3,132.22,6.8067]
[1765291402957,64.32,132.31,132.21,64.3]
[1765291403162,5.67671973,132.3,132.21,64.3]
[1765291403365,64.32,132.31,132.21,64.3]
[1765291403667,0.04772052,132.27,132.25,0.05402781]
[1765291411966,0.04772052,132.27,132.15,105.9407]
[1765291412171,112.08275745,132.28,132.16,64.26]
[1765291412463,6.8051,132.26,132.18,6.8088]
[1765291413164,0.05601193,132.23,132.21,0.04998903]
[1765291421170,6.8031,132.3,132.21,0.04998903]
[1765291421390,437.17069544,132.37,132.19,105.9058]
[1765291421391,115.45533152,132.33,132.2,105.9009]
[1765291421574,105.825,132.3,132.16,170.1716]
[1765291421869,105.825,132.3,132.17,64.24]
[1765291421870,105.8311,132.29,132.17,64.24]
[1765291422073,6.8051,132.26,132.19,6.8084]
[1765291422277,0.04969872,132.24,132.21,0.05454834]
[1765291422778,6.85569872,132.24,132.21,0.05454834]
[1765291424175,0.04969872,132.24,132.21,0.05454834]
[1765291424673,105.92299872,132.24,132.12,105.9613]
[1765291424861,115.52523152,132.24,132.12,170.2013]
[1765291425266,6.8075,132.21,132.14,6.8109]
[1765291425567,115.52523152,132.24,132.14,6.8109]
[1765291425774,0.0546524,132.2,132.18,0.05556965]
[1765291436485,6.8627524,132.2,132.18,0.05556965]
[1765291438282,0.0546524,132.2,132.18,0.05556965]
[1765291440289,16.70338085,132.28,132.18,0.05556965]
[1765291440476,6.8063,132.24,132.18,6.8089]
[1765291440678,6.8063,132.24,132.14,105.9468]
[1765291441186,6.8064,132.23,132.16,6.8096]
[1765291441375,0.0575932,132.21,132.18,0.05345134]
[1765291441581,0.0575932,132.21,132.18,0.04815224]
[1765291442284,5.69227973,132.2,132.18,0.04815224]
[1765291442489,0.0575932,132.21,132.18,0.04815224]
[1765291442690,5.69234971,132.2,132.18,0.04815224]
[1765291442891,0.0575932,132.21,132.18,0.04815224]
[1765291443192,105.9154,132.19,132.07,62.0]
[1765291443491,11.16581731,132.18,132.06,170.2692]
[1765291443681,5.69199836,132.17,132.09,6.8135]
[1765291443888,6.8094,132.18,132.08,105.9982]
[1765291444087,5.67129863,132.17,132.07,106.0007]
[1765291444286,0.05766549,132.14,132.12,0.04941568]
[1765291444490,0.04820798,132.14,132.12,0.05470947]
[1765291452692,6.8084,132.2,132.13,6.8113]
[1765291452894,73.95193152,132.24,132.12,64.28]
[1765291453093,5.65787764,132.23,132.12,170.2399]
[1765291453293,64.3,132.24,132.12,170.2399]
[1765291453489,5.66027417,132.23,132.12,170.2399]
[1765291453691,105.8575,132.26,132.16,6.86158911]
[1765291453993,0.05091724,132.22,132.2,0.05539023]
[1765291454200,0.05559224,132.22,132.2,0.05539023]
[1765291457502,0.05559224,132.22,132.13,6.8111]
[1765291457699,105.8813,132.23,132.13,6.8111]
[1765291457897,6.8083,132.2,132.13,6.8111]
[1765291458403,0.05275646,132.18,132.15,0.05205332]
[1765291465712,6.8097,132.17,132.15,0.05205332]
[1765291466912,3.69391747,132.18,132.15,0.05205332]
[1765291467513,0.05275646,132.18,132.15,0.05205332]
[1765291468404,6.86175646,132.18,132.15,0.05205332]
[1765291468605,0.05275646,132.18,132.15,0.05205332]
[1765291469605,6.86175646,132.18,132.15,0.05205332]
[1765291470514,0.05275646,132.18,132.15,0.05205332]
[1765291471603,0.05275646,132.18,132.15,6.86245332]
[1765291472808,0.05275646,132.18,132.15,0.05205332]
[1765291481815,2.38274729,132.18,132.15,0.05205332]
[1765291482222,2.32999083,132.16,132.15,0.05205332]
[1765291482814,2.32999083,132.16,132.09,64.28]
[1765291483011,9.14159083,132.13,132.06,2.32999083]
[1765291483818,2.37821599,132.11,132.08,0.05556803]
[1765291486526,0.04822516,132.11,132.08,0.05556803]
[1765291490421,2.37821599,132.11,132.08,0.05556803]
[1765291491031,2.32999083,132.09,132.08,0.05556803]
[1765291493220,2.32999083,132.09,132.03,64.28]
[1765291493923,9.14369083,132.09,132.03,71.0965]
[1765291494227,2.38301289,132.07,132.05,0.04829797]
[1765291495234,2.32999083,132.06,131.97,64.3]
[1765291495438,2.32999083,132.03,131.97,64.3]
[1765291495732,2.32999083,132.03,131.98,6.819]
[1765291496032,106.009,132.07,131.97,64.3]
[1765291496233,2.32999083,132.02,132.01,0.05428695]
[1765291496450,2.32999083,132.02,131.94,2.32999083]
[1765291496737,6.26104567,132.03,131.92,106.1237]
[1765291497028,6.26104567,132.03,131.93,6.8216]
[1765291497431,6.26104567,132.03,131.97,0.04777282]
[1765291497626,0.04947862,131.99,131.97,0.04777282]
[1765291500940,64.34,132.08,131.97,65.88777282]
[1765291501128,64.34,132.08,131.97,170.4042]
[1765291501439,112.24814567,132.1,132.01,6.8173]
[1765291501440,6.814,132.09,132.01,6.8173]
[1765291501735,6.26104567,132.1,132.01,6.8173]
[1765291501937,0.05604261,132.07,132.04,0.05504158]
[1765291502627,6.8153,132.06,131.97,71.1395]
[1765291502832,106.0024,132.08,131.97,71.1395]
[1765291503034,106.0024,132.08,131.97,64.32]
[1765291503732,0.04863927,132.04,132.01,0.0552479]
[1765291504439,0.04863927,132.04,132.02,6.8171]
[1765291504732,64.34,132.15,132.03,170.3584]
[1765291504937,64.34,132.15,132.05,6.26104567]
[1765291505328,6.8114,132.14,132.07,6.8145]
[1765291505525,0.05668588,132.12,132.09,0.05062825]
[1765291509245,105.9754,132.11,132.03,64.32]
[1765291510139,0.05403537,132.08,132.06,0.0485193]
[1765291514436,1.57403537,132.08,131.99,13.07944567]
[1765291514637,105.9912,132.09,131.99,13.07944567]
[1765291514838,105.9912,132.09,131.99,6.8184]
[1765291515147,6.8153,132.06,131.96,170.412]
[1765291515645,0.05066625,132.02,132.0,0.05672173]
[1765291517743,0.05066625,132.02,131.94,64.32]
[1765291517941,106.0349,132.04,131.94,64.32]
[1765291518240,6.8175,132.02,131.93,6.8215]
[1765291518446,6.8175,132.02,131.92,106.1255]
[1765291518646,5.64048595,132.03,131.92,112.38704567]
[1765291518945,0.05090479,131.99,131.96,0.05326479]
[1765291519147,0.05327339,131.99,131.96,0.04971563]
[1765291521549,0.05327339,131.99,131.96,6.86991563]
[1765291522250,6.8154,132.06,131.96,106.14451563]
[1765291522547,6.8154,132.06,131.96,170.4348]
[1765291523343,0.05252838,132.02,132.0,0.05193823]
[1765291531554,112.98180812,132.11,132.0,0.05193823]
[1765291531751,11.10188796,132.1,132.01,6.8174]
[1765291532052,6.8147,132.07,131.97,106.084]
[1765291532451,0.0529588,132.03,132.01,0.05167255]
[1765291533545,6.8698588,132.03,132.01,0.05167255]
[1765291533845,6.8698588,132.03,131.95,71.1605]
[1765291534045,106.0248,132.05,131.95,71.1605]
[1765291534257,6.8179,132.01,131.95,64.34]
[1765291534650,6.8179,132.01,131.93,6.8216]
[1765291534850,0.05278837,131.98,131.96,0.04928288]
[1765291535850,6.87228837,131.98,131.96,0.04928288]
[1765291537157,6.8201,131.97,131.9,64.34]
[1765291537866,6.8205,131.96,131.9,64.34]
[1765291538061,111.73421678,131.95,131.82,106.2028]
[1765291538359,111.73421678,131.95,131.88,0.05077978]
[1765291538360,0.05529974,131.9,131.88,0.05077978]
[1765291538657,0.05399234,131.9,131.88,0.05077978]
[1765291539561,0.05399234,131.9,131.82,64.36]
[1765291539762,5.61852069,131.92,131.82,64.36]
[1765291540056,9.68997169,131.93,131.82,64.36]
[1765291540265,6.8238,131.9,131.82,64.36]
[1765291540558,0.05057905,131.87,131.85,0.0483253]
[1765291540768,0.05594673,131.87,131.85,0.0483253]
[1765291541855,5.41678621,131.96,131.85,1.5683253]
[1765291542056,7.00190812,132.02,131.91,106.1298]
[1765291542254,7.00190812,132.02,131.9,106.1425]
[1765291542255,5.4176677,132.05,131.93,106.1184]
[1765291542460,5.612001,132.04,131.93,106.1184]
[1765291542659,5.61177013,132.03,131.9,180.19247169]
[1765291542860,0.04811925,131.98,131.95,0.05185949]
[1765291543066,0.04811925,131.98,131.95,0.05682669]
[1765291544568,0.04811925,131.98,131.89,64.38]
[1765291544865,106.0885,131.97,131.84,106.1856]
[1765291545055,106.1284,131.92,131.8,106.219]
[1765291545255,106.1284,131.92,131.79,107.54870648]
[1765291545256,106.1354,131.91,131.79,107.54870648]
[1765291545564,0.04929351,131.86,131.84,0.05072578]
[1765291545764,0.05545192,131.86,131.84,0.05785515]
[1765291548568,64.4,131.96,131.84,107.76665515]
[1765291548764,64.4,131.96,131.84,106.1888]
[1765291548976,69.98787456,131.96,131.84,106.1888]
[1765291549268,9.68997169,131.98,131.86,106.1706]
[1765291549570,0.05302385,131.93,131.91,0.05218413]
[1765291549771,0.05387297,131.93,131.91,0.05218413]
[1765291554273,0.05387297,131.93,131.8,106.218]
[1765291554274,6.87607297,131.93,131.83,71.207]
[1765291554476,6.8222,131.93,131.83,71.207]
[1765291555068,6.8211,131.95,131.84,106.19]
[1765291555276,0.04792972,131.91,131.88,0.05239958]
[1765291555476,0.05016482,131.91,131.88,0.05373759]
[1765291556775,64.4,131.98,131.89,106.1504]
[1765291556975,64.4,131.98,131.88,106.1556]
[1765291557273,6.82,131.97,131.87,106.1632]
[1765291557466,64.4,131.98,131.88,106.1589]
[1765291557669,0.05227842,131.94,131.92,0.0496156]
[1765291561777,0.05227842,131.94,131.82,106.202]
[1765291561975,6.8231,131.91,131.84,6.8262]
[1765291562168,106.121,131.93,131.84,6.8262]
[1765291562572,115.81787169,131.92,131.82,6.8274]
[1765291562878,115.81787169,131.92,131.86,0.05255436]
[1765291562879,0.04968979,131.88,131.86,0.05255436]
[1765291564080,64.4,131.95,131.86,1.57255436]
[1765291564277,64.4,131.95,131.85,106.1782]
[1765291564577,64.4,131.95,131.86,6.8253]
[1765291564786,64.4,131.95,131.86,106.1748]
[1765291564978,64.4,131.95,131.89,0.05537289]
[1765291564979,0.05532754,131.92,131.89,0.05537289]
[1765291566384,7.00190812,132.06,131.94,106.1045]
[1765291566684,112.99640812,132.09,131.96,106.0904]
[1765291566985,10.97346205,132.08,131.96,106.0904]
[1765291567284,6.8137,132.09,131.99,106.0691]
[1765291567489,6.8137,132.09,131.97,106.0821]
[1765291567674,0.05174219,132.05,132.02,0.05176106]
[1765291572091,0.05174219,132.05,131.94,106.1054]
[1765291572092,0.05174219,132.05,131.94,64.38]
[1765291572289,106.0023,132.08,131.95,106.1007]
[1765291572592,6.8145,132.08,131.97,106.0834]
[1765291572888,0.05243825,132.04,132.01,0.0555255]
[1765291573083,0.05243825,132.04,132.01,0.05035187]
[1765291573883,0.05243825,132.04,131.92,106.1237]
[1765291574079,106.0285,132.05,131.93,106.1187]
[1765291574272,6.817,132.03,131.93,6.8217]
[1765291574490,106.0388,132.03,131.93,6.8217]
[1765291574675,115.72057169,132.04,131.93,6.8217]
[1765291574986,115.72057169,132.04,131.97,0.04963713]
[1765291574987,0.04808699,132.0,131.97,0.04963713]
[1765291579577,0.04808699,132.0,131.97,6.86933713]
[1765291580092,74.06997169,132.1,132.01,6.8176]
[1765291580385,74.06997169,132.1,131.97,170.4439]
[1765291580386,6.8143,132.08,131.97,170.4439]
[1765291580581,105.9909,132.09,131.99,6.8184]
[1765291580978,180.05517169,132.1,131.98,106.0762]
[1765291581178,0.05509408,132.05,132.03,0.05066114]
[1765291581386,0.04936776,132.05,132.03,0.05066114]
[1765291586689,0.04936776,132.05,131.97,64.36]
[1765291586995,6.8173,132.02,131.95,6.8204]
[1765291587781,0.04771135,132.0,131.97,0.04883562]
[1765291587985,0.05321359,132.0,131.97,0.05306141]
[1765291588182,0.05321359,132.0,131.98,6.8191]
[1765291588482,0.05321359,132.0,131.97,0.05306141]
[1765291589188,6.87171359,132.0,131.97,0.05306141]
[1765291589393,0.05321359,132.0,131.97,0.05306141]
[1765291589588,0.05321359,132.0,131.9,64.36]
[1765291589786,106.0507,132.02,131.9,64.36]
[1765291590196,6.8194,131.98,131.91,6.8225]
[1765291590587,0.05470627,131.96,131.93,0.05483252]
[1765291591388,0.05470627,131.96,131.93,6.87663252]
[1765291592300,0.05470627,131.96,131.93,0.05483252]
[1765291592692,6.87510627,131.96,131.93,0.05483252]
[1765291593086,0.05470627,131.96,131.93,0.05483252]
[1765291596096,6.87530627,131.96,131.93,0.05483252]
[1765291596295,0.05470627,131.96,131.93,0.05483252]
[1765291597796,6.87510627,131.96,131.93,0.05483252]
[1765291598607,0.05470627,131.96,131.93,0.05483252]
[1765291601902,0.05470627,131.96,131.94,6.8212]
[1765291602096,70.64634706,132.03,131.93,107.69093252]
[1765291602300,6.8173,132.02,131.92,106.1198]
[1765291602802,70.64634706,132.03,131.92,106.1198]
[1765291603006,0.0577454,131.99,131.96,0.05479653]
[1765291603406,0.0577454,131.99,131.96,6.87459653]
[1765291603711,0.0577454,131.99,131.96,0.05479653]
[1765291604206,0.0577454,131.99,131.96,6.87509653]
[1765291604607,0.0577454,131.99,131.96,0.05479653]
[1765291608709,0.0577454,131.99,131.97,6.8198]
[1765291608906,0.0577454,131.99,131.96,0.05479653]
[1765291610613,0.0577454,131.99,131.97,6.8198]
[1765291611101,0.0577454,131.99,131.98,6.8193]
[1765291611300,170.3839,132.08,131.96,106.14639653]
[1765291611301,64.38,132.08,131.96,106.14639653]
[1765291611510,5.62822717,132.07,131.97,170.4439]
[1765291611807,64.38,132.08,132.0,6.8181]
[1765291612013,105.9637,132.13,132.0,106.0602]
[1765291612014,5.38115137,132.11,132.0,106.0602]
[1765291612206,5.63167875,132.1,132.0,106.0602]
[1765291612409,0.0502331,132.06,132.04,0.04980179]
[1765291614719,5.37568198,132.15,132.04,1.56980179]
[1765291615014,119.14587234,132.18,132.05,106.0218]
[1765291615210,11.00374814,132.17,132.05,106.0218]
[1765291615412,5.62782671,132.16,132.05,106.0218]
[1765291615613,0.05015039,132.12,132.09,0.05507337]
[1765291615805,0.05628679,132.12,132.09,0.04843768]
[1765291619310,0.05628679,132.12,132.09,6.86183768]
[1765291619610,64.38,132.19,132.09,64.38843768]
[1765291619816,64.38,132.19,132.09,64.34]
[1765291620215,6.8092,132.18,132.1,6.8129]
[1765291620421,0.05001771,132.15,132.13,0.05666853]
[1765291620718,105.99581771,132.15,132.05,64.34]
[1765291620910,6.26634706,132.14,132.05,64.34]
[1765291621108,6.8107,132.15,132.07,6.8145]
[1765291621519,112.19564706,132.17,132.05,64.34]
[1765291621716,0.0568411,132.12,132.1,0.05049589]
[1765291621928,0.05022572,132.12,132.1,0.05049589]
[1765291626524,6.86252572,132.12,132.1,0.05049589]
[1765291628132,0.05022572,132.12,132.1,0.05049589]
[1765291628831,6.86252572,132.12,132.1,0.05049589]
[1765291629731,0.05022572,132.12,132.1,0.05049589]
[1765291630826,0.05022572,132.12,132.03,106.0349]
[1765291631027,6.26634706,132.15,132.03,106.0349]
[1765291631227,6.26634706,132.15,132.05,106.0201]
[1765291631925,0.05592506,132.11,132.09,0.05233319]
[1765291633832,0.05592506,132.11,131.99,106.065]
[1765291634142,112.23594706,132.12,131.99,170.385]
[1765291634335,6.26634706,132.09,131.99,64.32]
[1765291634842,13.08044706,132.09,131.99,170.3876]
[1765291635033,0.05377619,132.05,132.03,0.05203524]
[1765291640846,6.86957619,132.05,132.03,0.05203524]
[1765291641356,6.26634706,132.04,131.92,106.1217]
[1765291641559,112.30354706,132.04,131.92,106.1267]
[1765291641754,6.26634706,132.01,131.89,70.58634706]
[1765291642060,6.819,131.99,131.91,6.8227]
[1765291642257,0.04908918,131.96,131.94,0.05617605]
[1765291642457,106.0717,131.99,131.94,0.05617605]
[1765291642650,0.05473771,131.96,131.94,0.05617605]
[1765291649665,106.1053,131.95,131.82,1.31895621]
[1765291649856,170.4713,131.94,131.82,1.31895621]
[1765291650061,6.8231,131.91,131.82,1.31895621]
[1765291650566,0.05757709,131.88,131.85,0.05051644]
[1765291652565,0.05757709,131.88,131.85,106.23091644]
[1765291653066,6.821,131.95,131.85,107.75091644]
[1765291653267,6.821,131.95,131.85,106.1804]
[1765291653969,0.05568682,131.91,131.89,0.05190592]
[1765291661171,0.05568682,131.91,131.89,6.87560592]
[1765291661561,64.4,131.97,131.89,0.05190592]
[1765291661770,64.4,131.97,131.89,106.1506]
[1765291662068,170.4497,132.02,131.9,106.1419]
[1765291662271,64.4,132.02,131.91,106.1342]
[1765291662672,0.05582504,131.98,131.95,0.05299632]
[1765291664360,0.05582504,131.98,131.95,6.87369632]
[1765291664664,0.05582504,131.98,131.95,0.05299632]
[1765291667974,6.87522504,131.98,131.95,0.05299632]
[1765291668174,0.05582504,131.98,131.95,0.05299632]
[1765291672467,6.87522504,131.98,131.95,0.05299632]
[1765291674663,0.05582504,131.98,131.9,6.8232]
[1765291674872,106.095,131.96,131.85,64.38]
[1765291675467,106.095,131.96,131.88,6.8244]
[1765291675767,0.04844763,131.93,131.91,0.05617567]
[1765291676068,6.87054763,131.93,131.91,0.05617567]
[1765291676975,0.04844763,131.93,131.91,0.05617567]
[1765291678466,0.04844763,131.93,131.92,6.8224]
[1765291678666,0.04844763,131.93,131.91,0.05617567]
[1765291679077,0.04844763,131.93,131.92,6.8224]
[1765291679878,0.04844763,131.93,131.91,0.05617567]
[1765291682974,0.04844763,131.93,131.8,179.24057962]
[1765291683280,5.61470297,131.92,131.84,106.1892]
[1765291683481,177.46352528,131.95,131.84,106.1892]
[1765291683672,177.46352528,131.95,131.82,64.38]
[1765291683673,106.1376,131.91,131.82,64.38]
[1765291683874,12.45246621,131.9,131.81,106.2138]
[1765291684074,0.05696515,131.87,131.84,0.05183497]
[1765291684279,0.04969801,131.87,131.84,0.05098889]
[1765291684579,0.04969801,131.87,131.85,6.8258]
[1765291684777,115.79344821,131.97,131.86,107.6925]
[1765291684778,5.6307368,131.94,131.86,107.6925]
[1765291684970,113.04802528,131.97,131.86,106.1725]
[1765291685176,11.03753352,131.96,131.88,106.1581]
[1765291685484,5.63178409,131.95,131.88,106.1581]
[1765291685678,6.8191,131.99,131.93,6.8218]
[1765291685874,0.0531811,131.97,131.95,0.05783972]
[1765291686284,5.64147781,131.96,131.95,0.05783972]
[1765291687192,5.64147781,131.96,131.87,106.1644]
[1765291687193,5.64147781,131.96,131.9,6.8231]
[1765291687372,5.64147781,131.95,131.9,6.8231]
[1765291687579,5.64130337,131.94,131.85,106.1764]
[1765291687777,5.64084444,131.93,131.88,6.8243]
[1765291687984,6.8213,131.95,131.88,6.8243]
[1765291688187,0.05751344,131.93,131.9,0.04646665]
[1765291689284,0.05751344,131.93,131.91,6.8228]
[1765291689887,6.95642528,132.01,131.93,6.8217]
[1765291690084,11.06474238,132.0,131.91,106.1328]
[1765291690287,5.64629604,131.99,131.91,106.1328]
[1765291690584,6.8183,132.0,131.95,6.8207]
[1765291690879,5.64561687,131.99,131.95,6.8207]
[1765291691085,5.64561687,131.99,131.96,0.05113421]
[1765291691086,6.87274386,131.99,131.96,0.05113421]
[1765291691290,0.05630088,131.99,131.96,0.05113421]
[1765291691474,5.64410376,131.98,131.88,64.4]
[1765291691679,5.64410376,131.97,131.88,64.4]
[1765291691986,6.95642528,132.0,131.91,106.1321]
[1765291692180,5.64441867,131.99,131.92,106.126]
[1765291692383,71.2172,132.03,131.96,6.8203]
[1765291692687,0.05270748,132.01,131.98,0.05284588]
[1765291693785,0.05270748,132.01,131.99,6.8186]
[1765291693986,0.05270748,132.01,131.98,0.05284588]
[1765291694194,112.95132528,132.09,131.98,0.05284588]
[1765291694195,5.64007817,132.06,131.98,0.05284588]
[1765291694488,105.9872,132.1,131.98,170.4556]
[1765291694677,105.9988,132.08,131.98,64.38]
[1765291695091,105.9798,132.11,131.99,106.07]
[1765291695300,0.05654934,132.06,132.04,0.04822516]
[1765291695585,0.05565303,132.06,132.04,0.04822516]
[1765291698890,0.05565303,132.06,132.05,6.8157]
[1765291699082,0.05565303,132.06,132.04,0.04822516]
[1765291700681,0.05565303,132.06,132.04,6.86422516]
[1765291701681,0.05565303,132.06,132.04,0.04822516]
[1765291705593,6.87095303,132.06,131.99,6.8187]
[1765291705896,106.0084,132.07,131.99,6.8187]
[1765291706489,0.05623604,132.04,132.02,0.0573282]
[1765291707595,0.05623604,132.04,131.95,64.36]
[1765291707794,106.0252,132.05,131.95,64.36]
[1765291707998,106.0252,132.05,131.97,6.8197]
[1765291708201,180.07894821,132.06,131.97,6.8197]
[1765291708697,0.05004612,132.03,131.97,6.8197]
[1765291709489,6.86694612,132.03,131.97,6.8197]
[1765291710400,0.05004612,132.03,131.97,106.0866]
[1765291710585,0.05004612,132.03,131.98,106.0786]
[1765291710992,0.05004612,132.03,132.01,6.8176]
[1765291712693,6.814,132.09,132.03,6.8163]
[1765291713192,6.814,132.09,132.01,106.0536]
[1765291713902,0.04936166,132.06,132.04,0.0485527]
[1765291714999,0.04936166,132.06,131.97,64.34]
[1765291715197,106.0149,132.06,131.98,6.8189]